[Event "*** Titled Tuesday 3|2 Blitz (Early)"]
[Site "Chess.com"]
[Date "2017.01.03"]
[Round "7"]
[White "ajkom197"]
[Black "FairChess_on_YouTube"]
[Result "1-0"]
[WhiteElo "2327"]
[BlackElo "2744"]
[TimeControl "180+2"]
[EndTime "12:34:36 PST"]
[Termination "ajkom197 won by resignation"]

1. d4 {[%clk 0:03:02]} 1... d5 {[%clk 0:03:00.8]} 2. Bf4 {[%clk 0:03:02.2]} 2...
Bf5 {[%clk 0:03:00.2]} 3. e3 {[%clk 0:03:00.1]} 3... e6 {[%clk 0:03:01.2]} 4.
Nf3 {[%clk 0:02:58.6]} 4... c5 {[%clk 0:03:00.8]} 5. Bxb8 {[%clk 0:02:56.1]}
5... Rxb8 {[%clk 0:03:00.4]} 6. Bb5+ {[%clk 0:02:56.7]} 6... Ke7 {[%clk
0:03:01.6]} 7. dxc5 {[%clk 0:02:55.9]} 7... Qa5+ {[%clk 0:03:00.5]} 8. Nc3
{[%clk 0:02:56.6]} 8... a6 {[%clk 0:02:56.5]} 9. Bd3 {[%clk 0:02:55.4]} 9... Bg4
{[%clk 0:02:57.6]} 10. O-O {[%clk 0:02:54.3]} 10... Nf6 {[%clk 0:02:49]} 11. h3
{[%clk 0:02:55.5]} 11... Bxf3 {[%clk 0:02:49.8]} 12. Qxf3 {[%clk 0:02:55.6]}
12... Qxc5 {[%clk 0:02:51.3]} 13. e4 {[%clk 0:02:54.7]} 13... dxe4 {[%clk
0:02:47.1]} 14. Nxe4 {[%clk 0:02:54.9]} 14... Nxe4 {[%clk 0:02:47.9]} 15. Bxe4
{[%clk 0:02:54.3]} 15... g6 {[%clk 0:02:48.5]} 16. Rad1 {[%clk 0:02:52.3]} 16...
Bh6 {[%clk 0:02:34.9]} 17. Bxb7 {[%clk 0:02:40.5]} 17... f5 {[%clk 0:02:14.7]}
18. Bxa6 {[%clk 0:02:32.6]} 18... Rxb2 {[%clk 0:02:14.1]} 19. a4 {[%clk
0:02:30.3]} 19... Rxc2 {[%clk 0:02:11.2]} 20. Bb5 {[%clk 0:02:31.1]} 20... Rd2
{[%clk 0:02:01.1]} 21. Rxd2 {[%clk 0:02:28]} 21... Bxd2 {[%clk 0:02:02.6]} 22.
Rd1 {[%clk 0:02:27.9]} 22... Qd4 {[%clk 0:01:58.3]} 23. Qa3+ {[%clk 0:02:13.3]}
23... Qb4 {[%clk 0:01:22.8]} 24. Qxb4+ {[%clk 0:01:59.3]} 24... Bxb4 {[%clk
0:01:23.4]} 25. Rd7+ {[%clk 0:02:00.9]} 25... Kf6 {[%clk 0:01:24.4]} 26. g3
{[%clk 0:02:01]} 26... h5 {[%clk 0:01:25]} 27. h4 {[%clk 0:02:01.4]} 27... Rc8
{[%clk 0:01:25.4]} 28. Rd4 {[%clk 0:01:56.5]} 28... Ba5 {[%clk 0:01:19.3]} 29.
Rc4 {[%clk 0:01:54.2]} 29... Rd8 {[%clk 0:01:20.2]} 30. Rc6 {[%clk 0:01:55]}
30... Bd2 {[%clk 0:00:56]} 31. Bc4 {[%clk 0:01:51.8]} 31... Re8 {[%clk 0:00:57]}
32. Kg2 {[%clk 0:01:50.5]} 32... Re7 {[%clk 0:00:52.9]} 33. f4 {[%clk
0:01:49.5]} 33... Ba5 {[%clk 0:00:49.6]} 34. Ra6 {[%clk 0:01:48.5]} 34... Bb4
{[%clk 0:00:47.7]} 35. Rc6 {[%clk 0:01:47.6]} 35... Kf7 {[%clk 0:00:45]} 36. Kf3
{[%clk 0:01:43.8]} 36... Ba5 {[%clk 0:00:45.7]} 37. Ra6 {[%clk 0:01:43.1]} 37...
Be1 {[%clk 0:00:46.2]} 38. Rc6 {[%clk 0:01:43]} 38... Kf6 {[%clk 0:00:45.5]} 39.
Kg2 {[%clk 0:01:41.4]} 39... Ba5 {[%clk 0:00:42.1]} 40. Ra6 {[%clk 0:01:41.1]}
40... Bb4 {[%clk 0:00:43.3]} 41. Rc6 {[%clk 0:01:41.5]} 41... Kf7 {[%clk
0:00:42.7]} 42. Rb6 {[%clk 0:01:41.2]} 42... Bc5 {[%clk 0:00:42.6]} 43. Rc6
{[%clk 0:01:41.7]} 43... Ba7 {[%clk 0:00:42.8]} 44. a5 {[%clk 0:01:42.2]} 44...
Rb7 {[%clk 0:00:41.9]} 45. Rxe6 {[%clk 0:01:36.3]} 45... Kg7 {[%clk 0:00:40.7]}
46. a6 {[%clk 0:01:36.7]} 46... Rb2+ {[%clk 0:00:41]} 47. Re2 {[%clk 0:01:32.1]}
47... Rb4 {[%clk 0:00:41.8]} 48. Re7+ {[%clk 0:01:31.6]} 48... Kf8 {[%clk
0:00:40.6]} 49. Rf7+ {[%clk 0:01:28.6]} 49... Ke8 {[%clk 0:00:41.2]} 50. Rxa7
{[%clk 0:01:28.8]} 50... Rxc4 {[%clk 0:00:42.4]} 51. Rg7 {[%clk 0:01:29.8]}
51... Ra4 {[%clk 0:00:38.9]} 52. a7 {[%clk 0:01:30.8]} 52... Kf8 {[%clk
0:00:40.3]} 53. a8=Q+ {[%clk 0:01:30]} 53... Rxa8 {[%clk 0:00:40.3]} 54. Rxg6
{[%clk 0:01:31.3]} 54... Kf7 {[%clk 0:00:38.6]} 55. Rg5 {[%clk 0:01:32.3]} 55...
Kf6 {[%clk 0:00:39.7]} 56. Rxh5 {[%clk 0:01:33.4]} 56... Ra2+ {[%clk 0:00:38.6]}
57. Kh3 {[%clk 0:01:34.3]} 57... Ra3 {[%clk 0:00:38.9]} 58. Rh6+ {[%clk
0:01:35.6]} 58... Kg7 {[%clk 0:00:40.1]} 59. Rc6 {[%clk 0:01:36.4]} 59... Ra1
{[%clk 0:00:41.7]} 60. Rc7+ {[%clk 0:01:31.9]} 60... Kg6 {[%clk 0:00:41.9]} 61.
Rc6+ {[%clk 0:01:33.8]} 61... Kg7 {[%clk 0:00:40.6]} 62. Rc2 {[%clk 0:01:34.8]}
62... Kg6 {[%clk 0:00:40.8]} 63. Kg2 {[%clk 0:01:31]} 63... Ra6 {[%clk
0:00:39.5]} 64. Rc3 {[%clk 0:01:31.3]} 64... Rb6 {[%clk 0:00:39.3]} 65. Rc5
{[%clk 0:01:30.7]} 65... Rb2+ {[%clk 0:00:39.1]} 66. Kh3 {[%clk 0:01:30.7]}
66... Rb1 {[%clk 0:00:38.6]} 67. h5+ {[%clk 0:01:31.4]} 67... Kf6 {[%clk
0:00:39.9]} 68. Rc6+ {[%clk 0:01:32.2]} 68... Kf7 {[%clk 0:00:40.5]} 69. Kh4
{[%clk 0:01:32.6]} 69... Rg1 {[%clk 0:00:41.4]} 70. Rc3 {[%clk 0:01:30.3]} 70...
Kf6 {[%clk 0:00:41.6]} 71. Rc6+ {[%clk 0:01:31.2]} 71... Kf7 {[%clk 0:00:42.8]}
72. h6 {[%clk 0:01:19.2]} 72... Rg2 {[%clk 0:00:40.2]} 73. h7 {[%clk 0:01:14.6]}
73... Kg7 {[%clk 0:00:38.6]} 74. h8=Q+ {[%clk 0:00:59.4]} 74... Kxh8 {[%clk
0:00:39.4]} 75. Rf6 {[%clk 0:01:00.3]} 75... Rh2+ {[%clk 0:00:38.6]} 76. Kg5
{[%clk 0:00:57.4]} 76... Rg2 {[%clk 0:00:40.5]} 77. Rh6+ {[%clk 0:00:55.3]}
77... Kg7 {[%clk 0:00:38.6]} 78. Rh3 {[%clk 0:00:55.6]} 78... Ra2 {[%clk
0:00:37.8]} 79. Kxf5 {[%clk 0:00:56.7]} 79... Ra5+ {[%clk 0:00:39.3]} 80. Kg4
{[%clk 0:00:58]} 80... Kg6 {[%clk 0:00:40.8]} 81. Rh2 {[%clk 0:00:58.9]} 81...
Ra2 {[%clk 0:00:41.7]} 82. Rxa2 {[%clk 0:00:59]} 1-0

[Event "*** Titled Tuesday 3|2 Blitz (Early)"]
[Site "Chess.com"]
[Date "2017.01.03"]
[Round "7"]
[White "Fibrinogen"]
[Black "Rating-Schmating"]
[Result "1/2-1/2"]
[WhiteElo "2284"]
[BlackElo "2275"]
[TimeControl "180+2"]
[EndTime "12:35:46 PST"]
[Termination "Game drawn by agreement"]

1. b3 {[%clk 0:03:02]} 1... Nf6 {[%clk 0:03:00.7]} 2. Bb2 {[%clk 0:03:02.8]}
2... d5 {[%clk 0:02:59.6]} 3. e3 {[%clk 0:03:03.3]} 3... Bf5 {[%clk 0:03:00.4]}
4. f4 {[%clk 0:03:03.4]} 4... e6 {[%clk 0:03:01.4]} 5. Nf3 {[%clk 0:03:03.2]}
5... c6 {[%clk 0:03:01.9]} 6. d3 {[%clk 0:02:59.2]} 6... Bd6 {[%clk 0:03:03]} 7.
Nbd2 {[%clk 0:03:00.6]} 7... Nbd7 {[%clk 0:03:03.1]} 8. h3 {[%clk 0:03:01.3]}
8... h5 {[%clk 0:03:03.8]} 9. Ng5 {[%clk 0:03:01.1]} 9... Nh7 {[%clk 0:02:57.1]}
10. Nxh7 {[%clk 0:02:57.5]} 10... Qh4+ {[%clk 0:02:56.3]} 11. Ke2 {[%clk
0:02:53.6]} 11... Rxh7 {[%clk 0:02:56.1]} 12. Nf3 {[%clk 0:02:54.3]} 12... Qe7
{[%clk 0:02:53.9]} 13. Ng5 {[%clk 0:02:51.2]} 13... Rh8 {[%clk 0:02:51.3]} 14.
Bxg7 {[%clk 0:02:50.3]} 14... Rg8 {[%clk 0:02:51.3]} 15. Bb2 {[%clk 0:02:49]}
15... e5 {[%clk 0:02:51.1]} 16. Nf3 {[%clk 0:02:32.3]} 16... exf4 {[%clk
0:02:45.1]} 17. Qd2 {[%clk 0:02:33.5]} 17... fxe3 {[%clk 0:02:38.1]} 18. Qxe3
{[%clk 0:02:32]} 18... Qxe3+ {[%clk 0:02:39]} 19. Kxe3 {[%clk 0:02:33.9]} 19...
O-O-O {[%clk 0:02:39]} 20. Kd2 {[%clk 0:02:25.4]} 20... Bf4+ {[%clk 0:02:38.3]}
21. Kc3 {[%clk 0:02:16.1]} 21... Rde8 {[%clk 0:02:36.2]} 22. Bc1 {[%clk
0:02:13.7]} 22... Bd6 {[%clk 0:02:20.8]} 23. Bd2 {[%clk 0:02:06.2]} 23... Ne5
{[%clk 0:02:16.5]} 24. Nxe5 {[%clk 0:02:03.7]} 24... Bxe5+ {[%clk 0:02:15.9]}
25. d4 {[%clk 0:02:04.9]} 25... Bh8 {[%clk 0:02:13.3]} 26. Bd3 {[%clk
0:01:55.4]} 26... Bxd3 {[%clk 0:02:13.8]} 27. cxd3 {[%clk 0:01:54.6]} 27... Rxg2
{[%clk 0:02:12.9]} 28. Rhg1 {[%clk 0:01:55.7]} 28... Ree2 {[%clk 0:02:10.5]} 29.
Rxg2 {[%clk 0:01:55.5]} 29... Rxg2 {[%clk 0:02:11.6]} 30. Rf1 {[%clk 0:01:57.1]}
30... c5 {[%clk 0:02:09.5]} 31. Be3 {[%clk 0:01:57.1]} 31... Rg3 {[%clk
0:02:03.8]} 32. Rxf7 {[%clk 0:01:50.6]} 32... Rxe3 {[%clk 0:01:55.8]} 33. Rf8+
{[%clk 0:01:51.4]} 33... Kc7 {[%clk 0:01:56.6]} 34. Rxh8 {[%clk 0:01:53]} 34...
cxd4+ {[%clk 0:01:55.9]} 35. Kxd4 {[%clk 0:01:54.1]} 35... Rxh3 {[%clk
0:01:57.2]} 36. Rh6 {[%clk 0:01:48.7]} 36... a5 {[%clk 0:01:55.5]} 37. a4 {[%clk
0:01:46.3]} 37... h4 {[%clk 0:01:55.2]} 38. Rh7+ {[%clk 0:01:42.4]} 38... Kb6
{[%clk 0:01:53.7]} 39. Rh6+ {[%clk 0:01:38.5]} 39... Ka7 {[%clk 0:01:53.8]} 40.
Rh5 {[%clk 0:01:35]} 40... Rh1 {[%clk 0:01:52.1]} 41. Kxd5 {[%clk 0:01:29.4]}
41... h3 {[%clk 0:01:50.9]} 42. Kd6 {[%clk 0:01:24.7]} 42... h2 {[%clk
0:01:49.8]} 43. Rxa5+ {[%clk 0:01:24.5]} 43... Kb6 {[%clk 0:01:48]} 44. Rb5+
{[%clk 0:01:25.4]} 44... Ka6 {[%clk 0:01:47.8]} 45. Rh5 {[%clk 0:01:27.3]} 45...
Rd1 {[%clk 0:01:47.4]} 46. Rxh2 {[%clk 0:01:27.5]} 46... Rxd3+ {[%clk
0:01:48.8]} 47. Kc5 {[%clk 0:01:28.5]} 47... Rxb3 {[%clk 0:01:49.6]} 48. Kc4
{[%clk 0:01:29.8]} 48... Rb1 {[%clk 0:01:49.9]} 49. Rh5 {[%clk 0:01:30.9]} 49...
Rc1+ {[%clk 0:01:50.3]} 50. Kb4 {[%clk 0:01:31.3]} 50... Rb1+ {[%clk 0:01:51.5]}
51. Kc4 {[%clk 0:01:32.4]} 51... Rg1 {[%clk 0:01:52.6]} 52. Kb4 {[%clk
0:01:30.8]} 52... Rg4+ {[%clk 0:01:53.3]} 53. Kb3 {[%clk 0:01:32]} 53... b6
{[%clk 0:01:53.3]} 54. Rd5 {[%clk 0:01:23.6]} 54... Rg3+ {[%clk 0:01:53.7]} 55.
Kb4 {[%clk 0:01:20.4]} 55... Rg4+ {[%clk 0:01:54.4]} 56. Kb3 {[%clk 0:01:21.3]}
56... Rg3+ {[%clk 0:01:55.5]} 57. Kc4 {[%clk 0:01:21.5]} 57... Rg4+ {[%clk
0:01:56.2]} 58. Kb3 {[%clk 0:01:22.2]} 58... Rg3+ {[%clk 0:01:57.5]} 59. Kc4
{[%clk 0:01:22.8]} 59... Rg1 {[%clk 0:01:58.2]} 60. Kb4 {[%clk 0:01:20.5]} 60...
Ra1 {[%clk 0:01:58.1]} 61. Rh5 {[%clk 0:01:17]} 61... Rb1+ {[%clk 0:01:56.9]}
62. Kc4 {[%clk 0:01:16.8]} 62... Rc1+ {[%clk 0:01:57.9]} 63. Kb3 {[%clk
0:01:17.8]} 63... Rb1+ {[%clk 0:01:59.3]} 64. Ka2 {[%clk 0:01:18.3]} 64... Rb4
{[%clk 0:02:00.3]} 65. Ka3 {[%clk 0:01:19.8]} 65... Rb1 {[%clk 0:02:01.9]} 66.
Ka2 {[%clk 0:01:20.2]} 66... Rf1 {[%clk 0:02:03.1]} 67. Ka3 {[%clk 0:01:19.6]}
67... Rf4 {[%clk 0:02:04.2]} 68. Rg5 {[%clk 0:01:19.6]} 68... Kb7 {[%clk
0:02:05.4]} 69. Rg7+ {[%clk 0:01:15.8]} 69... Kc6 {[%clk 0:02:06.5]} 70. Rg6+
{[%clk 0:01:16.4]} 70... Kc5 {[%clk 0:02:07.5]} 71. Rg5+ {[%clk 0:01:17.3]}
71... Kc4 {[%clk 0:02:03.7]} 72. Rb5 {[%clk 0:01:14.2]} 72... Rf6 {[%clk
0:02:01.8]} 73. Rb3 {[%clk 0:01:12.9]} 73... Kc5 {[%clk 0:01:58.8]} 74. Rc3+
{[%clk 0:01:13.5]} 74... Kd4 {[%clk 0:01:59.7]} 75. Rb3 {[%clk 0:01:14.9]} 75...
Kc4 {[%clk 0:01:59.9]} 76. Rh3 {[%clk 0:01:15.5]} 76... Rf1 {[%clk 0:01:55.6]}
77. Rh4+ {[%clk 0:01:16.2]} 77... Kc5 {[%clk 0:01:56.6]} 78. Rh5+ {[%clk
0:01:17.5]} 78... Kc6 {[%clk 0:01:57.7]} 79. Rh6+ {[%clk 0:01:18.9]} 79... Kc5
{[%clk 0:01:59.2]} 80. Rh5+ {[%clk 0:01:20.1]} 80... Kc6 {[%clk 0:02:00.9]} 81.
Rh4 {[%clk 0:01:21.1]} 81... Kb7 {[%clk 0:02:01]} 82. Rh5 {[%clk 0:01:21.3]}
82... Ka6 {[%clk 0:02:02]} 83. Rg5 {[%clk 0:01:18.6]} 83... Rh1 {[%clk
0:02:02.5]} 84. Rb5 {[%clk 0:01:16.6]} 84... Rh3+ {[%clk 0:02:03]} 85. Rb3
{[%clk 0:01:16.9]} 85... Rh4 {[%clk 0:02:04.3]} 86. Rb4 {[%clk 0:01:11.2]} 86...
Rh5 {[%clk 0:02:05.3]} 87. Rb3 {[%clk 0:01:11.9]} 87... Rh1 {[%clk 0:02:03.5]}
88. Rc3 {[%clk 0:01:10.2]} 88... Kb7 {[%clk 0:02:04.3]} 89. Kb4 {[%clk
0:01:10.5]} 89... Rb1+ {[%clk 0:02:05]} 90. Kc4 {[%clk 0:01:11.5]} 90... Ka6
{[%clk 0:02:05.7]} 91. Rb3 {[%clk 0:00:59.7]} 91... Rc1+ {[%clk 0:02:05.5]} 92.
Kb4 {[%clk 0:01:00.6]} 92... Rh1 {[%clk 0:02:05.6]} 93. Rg3 {[%clk 0:01:00.5]}
93... Ra1 {[%clk 0:02:06.1]} 94. Rg5 {[%clk 0:00:59.7]} 94... Rb1+ {[%clk
0:02:06.4]} 95. Ka3 {[%clk 0:01:00.3]} 95... Ra1+ {[%clk 0:02:07.6]} 96. Kb3
{[%clk 0:01:01.2]} 96... Rf1 {[%clk 0:02:09.1]} 97. Rh5 {[%clk 0:01:01]} 97...
Rf3+ {[%clk 0:02:10.1]} 98. Kb4 {[%clk 0:01:01.8]} 98... Rg3 {[%clk 0:02:10.2]}
99. Rf5 {[%clk 0:01:02.5]} 99... Kb7 {[%clk 0:02:09.9]} 100. Re5 {[%clk
0:01:03.6]} 100... Rg4+ {[%clk 0:02:10.6]} 101. Ka3 {[%clk 0:01:04.4]} 101...
Kc6 {[%clk 0:02:11.4]} 102. Rh5 {[%clk 0:01:05.7]} 102... Rf4 {[%clk 0:02:12]}
103. Rh6+ {[%clk 0:01:06.8]} 103... Kc5 {[%clk 0:02:13.4]} 104. Rh5+ {[%clk
0:01:08.3]} 104... Kc4 {[%clk 0:02:14.9]} 105. Rb5 {[%clk 0:01:07.9]} 105...
Rf3+ {[%clk 0:02:14.6]} 106. Ka2 {[%clk 0:01:09.1]} 106... Rf6 {[%clk
0:02:14.3]} 107. Ka3 {[%clk 0:01:09.9]} 107... Rg6 {[%clk 0:02:14.9]} 108. Rb4+
{[%clk 0:01:08.9]} 108... Kc3 {[%clk 0:02:16.1]} 109. Rb3+ {[%clk 0:01:07.1]}
109... Kc2 {[%clk 0:02:17.3]} 110. Rb2+ {[%clk 0:01:06.2]} 110... Kc3 {[%clk
0:02:17.8]} 111. Rb3+ {[%clk 0:01:07.1]} 111... Kc4 {[%clk 0:02:19.4]} 112. Rb4+
{[%clk 0:01:08.3]} 112... Kc3 {[%clk 0:02:21.1]} 113. Rb3+ {[%clk 0:01:09.6]}
113... Kc2 {[%clk 0:02:22.7]} 114. Rb2+ {[%clk 0:01:11]} 114... Kc1 {[%clk
0:02:24.3]} 115. Rh2 {[%clk 0:01:05.9]} 115... Rg4 {[%clk 0:02:21.6]} 116. Rf2
{[%clk 0:00:59.9]} 116... Rg6 {[%clk 0:02:20.4]} 117. Kb4 {[%clk 0:00:57.3]}
117... Rg5 {[%clk 0:02:11.4]} 118. Rf6 {[%clk 0:00:55.9]} 118... Kb2 {[%clk
0:02:10]} 119. Rxb6 {[%clk 0:00:55.5]} 119... Rg4+ {[%clk 0:02:11.6]} 120. Ka5+
{[%clk 0:00:54.1]} 120... Ka3 {[%clk 0:02:12.7]} 121. Ka6 {[%clk 0:00:46.1]}
121... Kxa4 {[%clk 0:02:13.3]} 122. Kb7 {[%clk 0:00:48]} 122... Ka5 {[%clk
0:02:13.3]} 123. Ra6+ {[%clk 0:00:48.7]} 123... Kb5 {[%clk 0:02:14.9]} 124. Rb6+
{[%clk 0:00:50.6]} 124... Kc5 {[%clk 0:02:16.3]} 125. Rc6+ {[%clk 0:00:52.1]}
125... Kd5 {[%clk 0:02:18]} 126. Rb6 {[%clk 0:00:53.2]} 126... Rg7+ {[%clk
0:02:18.9]} 127. Ka6 {[%clk 0:00:54.2]} 127... Kc4 {[%clk 0:02:19.9]} 128. Rb1
{[%clk 0:00:55]} 128... Rg6+ {[%clk 0:02:20]} 129. Kb7 {[%clk 0:00:53.1]} 129...
Kc5 {[%clk 0:02:20.2]} 130. Kc7 {[%clk 0:00:53.8]} 130... Rg7+ {[%clk
0:02:20.9]} 131. Kd8 {[%clk 0:00:54.8]} 131... Kc6 {[%clk 0:02:22.1]} 132. Rc1+
{[%clk 0:00:55.6]} 132... Kd6 {[%clk 0:02:22.7]} 133. Rd1+ {[%clk 0:00:56.8]}
133... Kc6 {[%clk 0:02:22.6]} 1/2-1/2

[Event "*** Titled Tuesday 3|2 Blitz (Early)"]
[Site "Chess.com"]
[Date "2017.01.03"]
[Round "8"]
[White "Mazetovic"]
[Black "Lupul_Cenusiu"]
[Result "0-1"]
[WhiteElo "2444"]
[BlackElo "2466"]
[TimeControl "180+2"]
[EndTime "12:41:03 PST"]
[Termination "Lupul_Cenusiu won by resignation"]

1. e4 {[%clk 0:03:02]} 1... c5 {[%clk 0:03:00.3]} 2. b4 {[%clk 0:02:59.9]} 2...
cxb4 {[%clk 0:02:59.9]} 3. d4 {[%clk 0:03:00]} 3... d5 {[%clk 0:03:00.7]} 4. e5
{[%clk 0:02:49.6]} 4... Bf5 {[%clk 0:03:00.7]} 5. a3 {[%clk 0:02:48.9]} 5... e6
{[%clk 0:02:56.8]} 6. axb4 {[%clk 0:02:49.1]} 6... Bxb4+ {[%clk 0:02:57.1]} 7.
c3 {[%clk 0:02:50.3]} 7... Be7 {[%clk 0:02:55.4]} 8. Qb3 {[%clk 0:02:46.6]} 8...
Qc8 {[%clk 0:02:51.8]} 9. Na3 {[%clk 0:02:39]} 9... Nc6 {[%clk 0:02:52.4]} 10.
Nb5 {[%clk 0:02:38.8]} 10... a6 {[%clk 0:02:52.3]} 11. Nd6+ {[%clk 0:02:33.9]}
11... Bxd6 {[%clk 0:02:53.4]} 12. exd6 {[%clk 0:02:35.1]} 12... Nf6 {[%clk
0:02:54.5]} 13. Ba3 {[%clk 0:02:32.9]} 13... O-O {[%clk 0:02:53.9]} 14. d7
{[%clk 0:02:33.4]} 14... Qxd7 {[%clk 0:02:51.7]} 15. Bxf8 {[%clk 0:02:33.7]}
15... Rxf8 {[%clk 0:02:51.7]} 16. Nf3 {[%clk 0:02:35.2]} 16... Rc8 {[%clk
0:02:52.6]} 17. Be2 {[%clk 0:02:34.9]} 17... Qc7 {[%clk 0:02:52.9]} 18. O-O
{[%clk 0:02:33.7]} 18... Ne4 {[%clk 0:02:51.9]} 19. Qa3 {[%clk 0:02:26.4]} 19...
Bg4 {[%clk 0:02:45.2]} 20. h3 {[%clk 0:02:22.2]} 20... Bxf3 {[%clk 0:02:45]} 21.
Bxf3 {[%clk 0:02:22.1]} 21... Nd2 {[%clk 0:02:46.2]} 22. Rfe1 {[%clk 0:02:23.1]}
22... Nxf3+ {[%clk 0:02:44.9]} 23. gxf3 {[%clk 0:02:23.9]} 23... Ne7 {[%clk
0:02:45.4]} 24. Rab1 {[%clk 0:02:11.7]} 24... Ng6 {[%clk 0:02:46.1]} 25. Qb2
{[%clk 0:02:10.5]} 25... b5 {[%clk 0:02:42.5]} 26. Re3 {[%clk 0:02:09.1]} 26...
Qf4 {[%clk 0:02:38.5]} 27. Qa3 {[%clk 0:01:54.1]} 27... Qg5+ {[%clk 0:02:39]}
28. Kh2 {[%clk 0:01:51.8]} 28... Qh4 {[%clk 0:02:37.9]} 29. Kg1 {[%clk
0:01:33.1]} 29... Nf4 {[%clk 0:02:34.9]} 30. Qxa6 {[%clk 0:01:27.9]} 30... Rf8
{[%clk 0:02:34.5]} 0-1

[Event "*** Titled Tuesday 3|2 Blitz (Early)"]
[Site "Chess.com"]
[Date "2017.01.03"]
[Round "8"]
[White "chesswooog"]
[Black "AlexanderL"]
[Result "0-1"]
[WhiteElo "2178"]
[BlackElo "2574"]
[TimeControl "180+2"]
[EndTime "12:41:44 PST"]
[Termination "AlexanderL won by resignation"]

1. e4 {[%clk 0:00:50.7]} 1... e6 {[%clk 0:02:57.7]} 2. d4 {[%clk 0:00:51.6]}
2... d5 {[%clk 0:02:58.9]} 3. e5 {[%clk 0:00:53.3]} 3... c5 {[%clk 0:02:59.9]}
4. c3 {[%clk 0:00:55]} 4... Nc6 {[%clk 0:03:01.4]} 5. Nf3 {[%clk 0:00:56.6]}
5... Bd7 {[%clk 0:03:02.9]} 6. Bd3 {[%clk 0:00:58.2]} 6... Qb6 {[%clk
0:03:03.6]} 7. O-O {[%clk 0:00:58.8]} 7... cxd4 {[%clk 0:03:04.8]} 8. cxd4
{[%clk 0:01:00.7]} 8... Nxd4 {[%clk 0:03:06.3]} 9. Nbd2 {[%clk 0:01:02.5]} 9...
Nc6 {[%clk 0:03:03.1]} 10. Nb3 {[%clk 0:01:03.7]} 10... Qd8 {[%clk 0:02:37.8]}
11. Be3 {[%clk 0:00:56.9]} 11... Nh6 {[%clk 0:02:30.1]} 12. Nc5 {[%clk
0:00:55.8]} 12... Ng4 {[%clk 0:02:30.7]} 13. Nxb7 {[%clk 0:00:55.3]} 13... Nxe3
{[%clk 0:02:31.2]} 14. Nxd8 {[%clk 0:00:48.2]} 14... Nxd1 {[%clk 0:02:31.2]} 15.
Nxc6 {[%clk 0:00:49.6]} 15... Nxb2 {[%clk 0:02:32]} 16. Bb5 {[%clk 0:00:49.6]}
16... a6 {[%clk 0:02:31.9]} 17. a4 {[%clk 0:00:20.5]} 17... axb5 {[%clk
0:02:12.1]} 18. axb5 {[%clk 0:00:21.3]} 18... Bxc6 {[%clk 0:02:13.6]} 19. bxc6
{[%clk 0:00:21.1]} 19... Rc8 {[%clk 0:02:15.5]} 20. Rfb1 {[%clk 0:00:19]} 20...
Nd3 {[%clk 0:02:05.9]} 21. Rb7 {[%clk 0:00:15.7]} 21... Bc5 {[%clk 0:02:06.2]}
22. Rd1 {[%clk 0:00:12.2]} 22... Nxf2 {[%clk 0:02:06.3]} 23. Rc1 {[%clk
0:00:12.1]} 23... Nd3+ {[%clk 0:02:07]} 24. Rxc5 {[%clk 0:00:13.3]} 24... Nxc5
{[%clk 0:02:08.9]} 0-1

[Event "*** Titled Tuesday 3|2 Blitz (Early)"]
[Site "Chess.com"]
[Date "2017.01.03"]
[Round "8"]
[White "cassoulet"]
[Black "danir29"]
[Result "1-0"]
[WhiteElo "2314"]
[BlackElo "2446"]
[TimeControl "180+2"]
[EndTime "12:41:56 PST"]
[Termination "cassoulet won by resignation"]

1. e4 {[%clk 0:03:02]} 1... b6 {[%clk 0:02:53]} 2. d4 {[%clk 0:03:00.9]} 2...
Bb7 {[%clk 0:02:51.5]} 3. Nc3 {[%clk 0:03:02.2]} 3... e6 {[%clk 0:02:47.5]} 4.
Bd3 {[%clk 0:03:03.3]} 4... g6 {[%clk 0:02:36.3]} 5. Nge2 {[%clk 0:03:04.2]}
5... Bg7 {[%clk 0:02:37.1]} 6. Bf4 {[%clk 0:03:02]} 6... Ne7 {[%clk 0:02:37.1]}
7. Qd2 {[%clk 0:03:02.6]} 7... h6 {[%clk 0:02:32.2]} 8. Be5 {[%clk 0:03:01.2]}
8... Bxe5 {[%clk 0:02:28.5]} 9. dxe5 {[%clk 0:03:03.1]} 9... Nbc6 {[%clk
0:02:28.5]} 10. f4 {[%clk 0:02:57.5]} 10... d6 {[%clk 0:02:26.5]} 11. exd6
{[%clk 0:02:55.9]} 11... cxd6 {[%clk 0:02:22.5]} 12. O-O-O {[%clk 0:02:54.2]}
12... a6 {[%clk 0:02:12.4]} 13. Bc4 {[%clk 0:02:46.8]} 13... Na5 {[%clk
0:01:59.7]} 14. Bb3 {[%clk 0:02:43.5]} 14... d5 {[%clk 0:01:30]} 15. exd5 {[%clk
0:02:39.1]} 15... Nxb3+ {[%clk 0:01:20.9]} 16. axb3 {[%clk 0:02:41]} 16... Nxd5
{[%clk 0:01:21.8]} 17. Nxd5 {[%clk 0:02:41.9]} 17... exd5 {[%clk 0:01:07.5]} 18.
Qe3+ {[%clk 0:02:32.5]} 18... Qe7 {[%clk 0:00:57.5]} 19. Qxb6 {[%clk 0:02:27.5]}
19... O-O {[%clk 0:00:56.4]} 20. Rhe1 {[%clk 0:02:28.7]} 20... Rfc8 {[%clk
0:00:53.3]} 21. Nd4 {[%clk 0:02:26.1]} 21... Qd7 {[%clk 0:00:49.3]} 22. f5
{[%clk 0:02:24.1]} 22... Qc7 {[%clk 0:00:25]} 23. Qf6 {[%clk 0:02:11]} 23...
Qf4+ {[%clk 0:00:24.3]} 24. Kb1 {[%clk 0:02:10.4]} 24... Re8 {[%clk 0:00:24]}
25. Rf1 {[%clk 0:01:54.3]} 1-0